[Event "GER-ch Blitz 2019"]
[Site "Magdeburg"]
[Date "2019.05.25"]
[Round "14.14"]
[White "Frischmann, Rick"]
[Black "Schmaltz, Roland"]
[Result "0-1"]
[ECO "C41"]
[WhiteElo "2320"]
[BlackElo "2461"]
[Annotator "ChessBase"]
[PlyCount "50"]
[EventDate "2019.05.25"]
[EventType "tourn"]
[EventCountry "GER"]
[Tiebreak "Number of wins+Number of black wins"]
[SourceTitle "playchess.com"]
[Source "ChessBase"]
[SourceQuality "1"]
[TimeControl "180+2"]

1. e4 {[%emt 0:00:00]} d6 {[%emt 0:00:00]} 2. d4 {[%emt 0:00:00]} Nf6 {[%emt 0:
00:00]} 3. Nc3 {[%emt 0:00:01]} e5 {[%emt 0:00:00]} 4. Nf3 {[%emt 0:00:00]}
Nbd7 {[%emt 0:00:00]} 5. g4 {[%emt 0:00:01]} g6 {[%emt 0:00:04]} 6. Rg1 {
[%emt 0:00:27]} Bg7 {[%emt 0:00:01]} 7. Be3 {[%emt 0:00:01]} O-O {[%emt 0:00:
07]} 8. Qd2 {[%emt 0:00:01]} exd4 {[%emt 0:00:06]} 9. Nxd4 {[%emt 0:00:03]} Ne5
{[%emt 0:00:09]} 10. O-O-O {[%emt 0:00:46]} c5 {[%emt 0:00:05]} 11. Nde2 {
[%emt 0:00:21]} Nf3 {[%emt 0:00:03]} 12. Qxd6 {[%emt 0:00:02]} Qxd6 {[%emt 0:
00:01]} 13. Rxd6 {[%emt 0:00:02]} Nxg1 {[%emt 0:00:02]} 14. Nxg1 {[%emt 0:00:
01]} Nxg4 {[%emt 0:00:03]} 15. Bxc5 {[%emt 0:00:01]} b6 {[%emt 0:00:06]} 16.
Bb4 {[%emt 0:00:03]} Be6 {[%emt 0:00:12]} 17. Bh3 {[%emt 0:00:27]} Nxf2 {
[%emt 0:00:22]} 18. Bxe6 {[%emt 0:00:01]} fxe6 {[%emt 0:00:01]} 19. Rxe6 {
[%emt 0:00:02]} Rfe8 {[%emt 0:00:06]} 20. Rc6 {[%emt 0:00:18]} Bxc3 {[%emt 0:
00:06]} 21. Bxc3 {[%emt 0:00:04]} Nxe4 {[%emt 0:00:02]} 22. Bd4 {[%emt 0:00:06]
} Rac8 {[%emt 0:00:07]} 23. Rxc8 {[%emt 0:00:02]} Rxc8 {[%emt 0:00:01]} 24. Nf3
{[%emt 0:00:01]} Rf8 {[%emt 0:00:08]} 25. Ne5 {[%emt 0:00:04]} Rf1# {[%emt 0:
00:02]} 0-1

[Event "GER-ch Blitz 2019"]
[Site "Magdeburg"]
[Date "2019.05.25"]
[Round "14.15"]
[White "Stein, Robert"]
[Black "Zuyev, Igor"]
[Result "0-1"]
[ECO "E04"]
[WhiteElo "2318"]
[BlackElo "2447"]
[Annotator "NA"]
[PlyCount "64"]
[EventDate "2019.05.25"]
[EventType "tourn"]
[EventCountry "GER"]
[Tiebreak "Number of wins+Number of black wins"]
[SourceTitle "playchess.com"]
[Source "ChessBase"]
[SourceQuality "1"]
[TimeControl "180+2"]

1. d4 {[%emt 0:00:00]} Nf6 {[%emt 0:00:00]} 2. c4 {[%emt 0:00:01]} e6 {[%emt 0:
00:00]} 3. g3 {[%emt 0:00:01]} d5 {[%emt 0:00:08]} 4. Nf3 {[%emt 0:00:02]} dxc4
{[%emt 0:00:05]} 5. Bg2 {[%emt 0:00:02]} c5 {[%emt 0:00:05]} 6. O-O {[%emt 0:
00:13]} cxd4 {[%emt 0:00:05]} 7. Nxd4 {[%emt 0:00:07]} a6 {[%emt 0:00:04]} 8.
a4 {[%emt 0:00:10]} Qc7 {[%emt 0:00:06]} 9. Na3 {[%emt 0:00:12]} e5 {[%emt 0:
00:06]} 10. Ndc2 {[%emt 0:00:03]} Be6 {[%emt 0:00:08]} 11. Bg5 {[%emt 0:00:09]}
Nc6 {[%emt 0:00:06]} 12. Bxf6 {[%emt 0:00:02]} gxf6 {[%emt 0:00:01]} 13. Ne3 {
[%emt 0:00:01]} Rd8 {[%emt 0:00:07]} 14. Nd5 {[%emt 0:00:32]} Bxd5 {[%emt 0:00:
14]} 15. Bxd5 {[%emt 0:00:02]} Nd4 {[%emt 0:00:05]} 16. e4 {[%emt 0:00:15]} c3
{[%emt 0:00:07]} 17. bxc3 Qxc3 {[%emt 0:00:06]} 18. Nc4 {[%emt 0:00:37]} Rxd5 {
[%emt 0:00:09]} 19. Rc1 {[%emt 0:00:02]} Qxc1 {[%emt 0:00:10]} 20. Qxc1 {
[%emt 0:00:02]} Ne2+ {[%emt 0:00:01]} 21. Kg2 {[%emt 0:00:02]} Nxc1 {[%emt 0:
00:02]} 22. exd5 {[%emt 0:00:01]} Nd3 {[%emt 0:00:07]} 23. Rd1 {[%emt 0:00:07]}
Nc5 {[%emt 0:00:06]} 24. d6 {[%emt 0:00:01]} Nxa4 {[%emt 0:00:10]} 25. Ne3 {
[%emt 0:00:06]} Kd7 {[%emt 0:00:06]} 26. Nf5 {[%emt 0:00:00]} Nc5 {[%emt 0:00:
06]} 27. Rc1 {[%emt 0:00:03]} b6 {[%emt 0:00:03]} 28. Rd1 {[%emt 0:00:14]} Ke6
{[%emt 0:00:07]} 29. g4 {[%emt 0:00:02]} h5 {[%emt 0:00:05]} 30. h3 {[%emt 0:
00:01]} b5 {[%emt 0:00:04]} 31. f4 {[%emt 0:00:20]} b4 {[%emt 0:00:05]} 32. Ne3
{[%emt 0:00:22]} hxg4 {[%emt 0:00:06]} 0-1

[Event "GER-ch Blitz 2019"]
[Site "Magdeburg"]
[Date "2019.05.25"]
[Round "15.1"]
[White "Gustafsson, Jan"]
[Black "Feuerstack, Aljoscha"]
[Result "1/2-1/2"]
[ECO "A11"]
[WhiteElo "2639"]
[BlackElo "2441"]
[Annotator "ChessBase"]
[PlyCount "100"]
[EventDate "2019.05.25"]
[EventType "tourn"]
[EventCountry "GER"]
[Tiebreak "Number of wins+Number of black wins"]
[SourceTitle "playchess.com"]
[Source "ChessBase"]
[SourceQuality "1"]
[TimeControl "180+2"]

1. c4 {[%emt 0:00:00]} c6 {[%emt 0:00:02]} 2. Nf3 {[%emt 0:00:01]} d5 {[%emt 0:
00:01]} 3. e3 {[%emt 0:00:02]} Nf6 {[%emt 0:00:01]} 4. Nc3 {[%emt 0:00:01]} Bf5
{[%emt 0:00:01]} 5. cxd5 {[%emt 0:00:02]} cxd5 {[%emt 0:00:02]} 6. Qb3 {
[%emt 0:00:02]} Nc6 {[%emt 0:00:01]} 7. Qxb7 {[%emt 0:00:02]} Bd7 {[%emt 0:00:
02]} 8. Qb3 {[%emt 0:00:02]} Rb8 {[%emt 0:00:02]} 9. Qd1 {[%emt 0:00:02]} e5 {
[%emt 0:00:02]} 10. d4 Bd6 11. dxe5 {[%emt 0:00:07]} Nxe5 {[%emt 0:00:03]} 12.
Be2 {[%emt 0:00:02]} Nxf3+ {[%emt 0:00:02]} 13. Bxf3 {[%emt 0:00:02]} Qc7 {
[%emt 0:00:01]} 14. h3 {[%emt 0:00:07]} O-O {[%emt 0:00:03]} 15. O-O {[%emt 0:
00:03]} Rfd8 {[%emt 0:00:01]} 16. Ne2 {[%emt 0:00:07]} Bh2+ {[%emt 0:00:15]}
17. Kh1 {[%emt 0:00:02]} Be5 {[%emt 0:00:01]} 18. Nd4 {[%emt 0:00:03]} Ne4 {
[%emt 0:00:04]} 19. Be2 {[%emt 0:00:21]} Rb6 {[%emt 0:00:07]} 20. Nf3 {[%emt 0:
00:12]} Bxb2 {[%emt 0:00:53]} 21. Bxb2 {[%emt 0:00:02]} Rxb2 {[%emt 0:00:01]}
22. Qxd5 {[%emt 0:00:23]} Bc6 {[%emt 0:00:20]} 23. Qc4 {[%emt 0:00:08]} Nd6 {
[%emt 0:00:01]} 24. Qc1 {[%emt 0:00:22]} Rxe2 {[%emt 0:00:29]} 25. Nd4 {
[%emt 0:00:01]} Bxg2+ {[%emt 0:00:07]} 26. Kxg2 {[%emt 0:00:02]} Qb7+ {[%emt 0:
00:02]} 27. Qc6 {[%emt 0:00:05]} Rb2 {[%emt 0:00:14]} 28. Qxb7 {[%emt 0:00:05]}
Rxb7 {[%emt 0:00:01]} 29. Rfd1 {[%emt 0:00:03]} g6 {[%emt 0:00:03]} 30. Nc6 {
[%emt 0:00:04]} Rdd7 {[%emt 0:00:03]} 31. Rd5 {[%emt 0:00:16]} Ne4 {[%emt 0:00:
07]} 32. Rxd7 {[%emt 0:00:11]} Rxd7 {[%emt 0:00:01]} 33. Kf3 {[%emt 0:00:07]}
f5 {[%emt 0:00:01]} 34. Nd4 {[%emt 0:00:01]} Rb7 {[%emt 0:00:03]} 35. Rc1 {
[%emt 0:00:05]} Rb2 {[%emt 0:00:16]} 36. Rc2 {[%emt 0:00:01]} Rxc2 {[%emt 0:00:
01]} 37. Nxc2 {[%emt 0:00:01]} Kf7 {[%emt 0:00:03]} 38. Nd4 {[%emt 0:00:01]} a5
{[%emt 0:00:11]} 39. a4 {[%emt 0:00:07]} Nc5 {[%emt 0:00:05]} 40. Nc6 {[%emt 0:
00:02]} Nxa4 {[%emt 0:00:02]} 41. Nxa5 {[%emt 0:00:01]} Nc5 {[%emt 0:00:01]}
42. Kf4 {[%emt 0:00:08]} Nd3+ {[%emt 0:00:01]} 43. Kg3 {[%emt 0:00:01]} Kf6 {
[%emt 0:00:01]} 44. Nc6 {[%emt 0:00:02]} g5 {[%emt 0:00:01]} 45. Nd4 {[%emt 0:
00:05]} h5 {[%emt 0:00:01]} 46. h4 {[%emt 0:00:09]} gxh4+ {[%emt 0:00:02]} 47.
Kxh4 {[%emt 0:00:05]} Nxf2 {[%emt 0:00:02]} 48. Kxh5 {[%emt 0:00:02]} Ng4 {
[%emt 0:00:02]} 49. Nxf5 {[%emt 0:00:02]} Nxe3 {[%emt 0:00:01]} 50. Nxe3 Ke5
1/2-1/2

[Event "GER-ch Blitz 2019"]
[Site "Magdeburg"]
[Date "2019.05.25"]
[Round "15.2"]
[White "Voege, Tobias"]
[Black "Wichmann, Cliff"]
[Result "1-0"]
[ECO "D40"]
[WhiteElo "2294"]
[BlackElo "2280"]
[Annotator "NA"]
[PlyCount "93"]
[EventDate "2019.05.25"]
[EventType "tourn"]
[EventCountry "GER"]
[Tiebreak "Number of wins+Number of black wins"]
[SourceTitle "playchess.com"]
[Source "ChessBase"]
[SourceQuality "1"]
[TimeControl "180+2"]

1. d4 {[%emt 0:00:00]} d5 {[%emt 0:00:00]} 2. c4 {[%emt 0:00:00]} e6 {[%emt 0:
00:00]} 3. Nc3 {[%emt 0:00:00]} Nf6 {[%emt 0:00:00]} 4. Bg5 {[%emt 0:00:01]} c5
{[%emt 0:00:01]} 5. Nf3 {[%emt 0:00:13]} cxd4 {[%emt 0:00:03]} 6. Nxd4 {
[%emt 0:00:01]} dxc4 {[%emt 0:00:11]} 7. e3 {[%emt 0:00:09]} Nbd7 {[%emt 0:00:
11]} 8. Bxc4 {[%emt 0:00:10]} Qa5 {[%emt 0:00:01]} 9. Bxf6 {[%emt 0:00:20]}
Nxf6 {[%emt 0:00:03]} 10. O-O {[%emt 0:00:02]} a6 {[%emt 0:00:07]} 11. a3 {
[%emt 0:00:08]} Be7 {[%emt 0:00:07]} 12. b4 {[%emt 0:00:10]} Qc7 {[%emt 0:00:
09]} 13. Qb3 {[%emt 0:00:03]} O-O {[%emt 0:00:13]} 14. Rac1 {[%emt 0:00:01]}
Qe5 {[%emt 0:00:01]} 15. Nce2 {[%emt 0:00:15]} Ne4 {[%emt 0:00:09]} 16. Rfd1 {
[%emt 0:00:13]} Qf6 {[%emt 0:00:43]} 17. Nf3 {[%emt 0:00:09]} e5 {[%emt 0:00:
04]} 18. Bd5 {[%emt 0:00:04]} Nd6 {[%emt 0:00:10]} 19. Ng3 {[%emt 0:00:10]} Bg4
{[%emt 0:00:05]} 20. h3 {[%emt 0:00:04]} Be6 {[%emt 0:00:24]} 21. Bxe6 {
[%emt 0:00:34]} fxe6 {[%emt 0:00:02]} 22. Qc3 {[%emt 0:00:15]} e4 {[%emt 0:00:
11]} 23. Qxf6 {[%emt 0:00:02]} gxf6 {[%emt 0:00:06]} 24. Nd4 {[%emt 0:00:02]}
Kf7 {[%emt 0:00:02]} 25. Rc7 {[%emt 0:00:03]} Rac8 {[%emt 0:00:03]} 26. Rdc1 {
[%emt 0:00:01]} Rxc7 {[%emt 0:00:01]} 27. Rxc7 {[%emt 0:00:01]} Rc8 {[%emt 0:
00:01]} 28. Rxc8 Nxc8 {[%emt 0:00:01]} 29. Nxe4 {[%emt 0:00:03]} Nb6 {[%emt 0:
00:04]} 30. Nd2 {[%emt 0:00:08]} Nd5 {[%emt 0:00:04]} 31. Kf1 {[%emt 0:00:05]}
Nc3 {[%emt 0:00:01]} 32. N4b3 {[%emt 0:00:05]} Nb5 {[%emt 0:00:06]} 33. Nc4 {
[%emt 0:00:04]} Ke8 {[%emt 0:00:14]} 34. Nba5 {[%emt 0:00:01]} b6 {[%emt 0:00:
02]} 35. Nc6 {[%emt 0:00:07]} Bf8 {[%emt 0:00:02]} 36. a4 {[%emt 0:00:07]} Nc3
{[%emt 0:00:02]} 37. Nxb6 {[%emt 0:00:01]} Kf7 {[%emt 0:00:10]} 38. a5 {
[%emt 0:00:05]} Bd6 {[%emt 0:00:06]} 39. Nc4 {[%emt 0:00:02]} Bc7 {[%emt 0:00:
02]} 40. Nb2 {[%emt 0:00:03]} Nd5 {[%emt 0:00:03]} 41. Nd3 {[%emt 0:00:01]} Bd6
{[%emt 0:00:02]} 42. Ke2 {[%emt 0:00:03]} e5 {[%emt 0:00:00]} 43. f3 {[%emt 0:
00:01]} Nc3+ {[%emt 0:00:01]} 44. Kd2 {[%emt 0:00:01]} Nb5 {[%emt 0:00:02]} 45.
Nd8+ {[%emt 0:00:06]} Ke7 {[%emt 0:00:03]} 46. Nb7 {[%emt 0:00:02]} Bc7 {
[%emt 0:00:01]} 47. Nbc5 {[%emt 0:00:01]} 1-0

[Event "GER-ch Blitz 2019"]
[Site "Magdeburg"]
[Date "2019.05.25"]
[Round "15.3"]
[White "Koch, Thomas"]
[Black "Braeuning, Rudolf Wilhelm"]
[Result "1-0"]
[ECO "A50"]
[WhiteElo "2474"]
[BlackElo "2285"]
[Annotator "ChessBase"]
[PlyCount "81"]
[EventDate "2019.05.25"]
[EventType "tourn"]
[EventCountry "GER"]
[Tiebreak "Number of wins+Number of black wins"]
[SourceTitle "playchess.com"]
[Source "ChessBase"]
[SourceQuality "1"]
[TimeControl "180+2"]

1. d4 {[%emt 0:00:00]} Nf6 2. c4 Nc6 {[%emt 0:00:03]} 3. Nf3 {[%emt 0:00:03]}
e6 {[%emt 0:00:01]} 4. g3 {[%emt 0:00:05]} d5 {[%emt 0:00:01]} 5. Bg2 {[%emt 0:
00:02]} dxc4 {[%emt 0:00:01]} 6. O-O {[%emt 0:00:02]} Rb8 {[%emt 0:00:02]} 7.
e3 {[%emt 0:00:09]} Bd7 {[%emt 0:00:18]} 8. Qe2 {[%emt 0:00:04]} b5 {[%emt 0:
00:03]} 9. e4 {[%emt 0:00:02]} Be7 {[%emt 0:00:06]} 10. Nc3 {[%emt 0:00:04]}
O-O {[%emt 0:00:05]} 11. Re1 {[%emt 0:00:03]} a6 {[%emt 0:00:13]} 12. Bf4 {
[%emt 0:00:07]} Nh5 {[%emt 0:00:30]} 13. Be3 {[%emt 0:00:03]} Nf6 {[%emt 0:00:
02]} 14. Bg5 {[%emt 0:00:08]} h6 {[%emt 0:00:05]} 15. Bf4 {[%emt 0:00:04]} Nh5
{[%emt 0:00:01]} 16. Bd2 {[%emt 0:00:06]} Nf6 {[%emt 0:00:01]} 17. Rad1 {
[%emt 0:00:04]} Nb4 {[%emt 0:00:06]} 18. e5 {[%emt 0:00:16]} Nfd5 {[%emt 0:00:
11]} 19. Nxd5 {[%emt 0:00:09]} exd5 {[%emt 0:00:16]} 20. Bxb4 {[%emt 0:00:03]}
Bxb4 {[%emt 0:00:02]} 21. Rf1 {[%emt 0:00:01]} Bf5 {[%emt 0:00:07]} 22. Nh4 {
[%emt 0:00:01]} Bd3 {[%emt 0:00:06]} 23. Rxd3 {[%emt 0:00:02]} cxd3 {[%emt 0:
00:00]} 24. Qxd3 {[%emt 0:00:01]} c5 {[%emt 0:00:22]} 25. dxc5 {[%emt 0:00:06]}
d4 {[%emt 0:00:07]} 26. c6 {[%emt 0:00:13]} Rc8 {[%emt 0:00:10]} 27. Nf5 {
[%emt 0:00:05]} Re8 {[%emt 0:00:24]} 28. a3 {[%emt 0:00:07]} Bf8 29. Re1 {
[%emt 0:00:02]} g6 {[%emt 0:00:08]} 30. Nh4 {[%emt 0:00:06]} Bg7 {[%emt 0:00:
06]} 31. e6 {[%emt 0:00:06]} Rxe6 {[%emt 0:00:02]} 32. Rxe6 {[%emt 0:00:01]}
fxe6 {[%emt 0:00:01]} 33. Qxg6 {[%emt 0:00:02]} Qf6 {[%emt 0:00:03]} 34. Qd3 {
[%emt 0:00:07]} Qe5 {[%emt 0:00:10]} 35. Be4 {[%emt 0:00:03]} Qg5 {[%emt 0:00:
04]} 36. Kg2 {[%emt 0:00:02]} Bf6 {[%emt 0:00:04]} 37. Nf3 {[%emt 0:00:05]} Qc5
{[%emt 0:00:01]} 38. Qd2 {[%emt 0:00:10]} Kg7 {[%emt 0:00:00]} 39. Qf4 {
[%emt 0:00:02]} d3 {[%emt 0:00:09]} 40. Qg4+ {[%emt 0:00:02]} Kf8 {[%emt 0:00:
03]} 41. Qxe6 {[%emt 0:00:02]} 1-0

[Event "GER-ch Blitz 2019"]
[Site "Magdeburg"]
[Date "2019.05.25"]
[Round "15.4"]
[White "Heistermann, Till"]
[Black "Baskin, Robert"]
[Result "1-0"]
[ECO "A13"]
[WhiteElo "2181"]
[BlackElo "2398"]
[Annotator "NA"]
[PlyCount "169"]
[EventDate "2019.05.25"]
[EventType "tourn"]
[EventCountry "GER"]
[Tiebreak "Number of wins+Number of black wins"]
[SourceTitle "playchess.com"]
[Source "ChessBase"]
[SourceQuality "1"]
[TimeControl "180+2"]

1. c4 {[%emt 0:00:00]} Nf6 {[%emt 0:00:00]} 2. g3 {[%emt 0:00:00]} e6 {[%emt 0:
00:00]} 3. Bg2 {[%emt 0:00:00]} d5 {[%emt 0:00:01]} 4. Nf3 {[%emt 0:00:00]}
dxc4 {[%emt 0:00:01]} 5. Qa4+ {[%emt 0:00:08]} Bd7 {[%emt 0:00:01]} 6. Qxc4 {
[%emt 0:00:01]} c5 {[%emt 0:00:00]} 7. O-O {[%emt 0:00:04]} Bc6 {[%emt 0:00:02]
} 8. Nc3 {[%emt 0:00:04]} Nbd7 {[%emt 0:00:03]} 9. d4 {[%emt 0:00:03]} cxd4 {
[%emt 0:00:05]} 10. Qxd4 {[%emt 0:00:01]} Bc5 {[%emt 0:00:01]} 11. Qd3 {
[%emt 0:00:03]} O-O {[%emt 0:00:04]} 12. a3 {[%emt 0:00:04]} a5 {[%emt 0:00:06]
} 13. Bf4 {[%emt 0:00:03]} Qb6 {[%emt 0:00:02]} 14. Rab1 {[%emt 0:00:13]} Ng4 {
[%emt 0:00:30]} 15. Nd1 {[%emt 0:00:25]} Rfd8 {[%emt 0:00:07]} 16. h3 {[%emt 0:
00:08]} Ngf6 {[%emt 0:00:03]} 17. Nc3 {[%emt 0:00:22]} Ne5 {[%emt 0:00:10]} 18.
Qc2 {[%emt 0:00:02]} Nxf3+ {[%emt 0:00:11]} 19. Bxf3 {[%emt 0:00:04]} Bxf3 {
[%emt 0:00:01]} 20. exf3 {[%emt 0:00:01]} Qc6 {[%emt 0:00:02]} 21. Ne4 {
[%emt 0:00:06]} Nxe4 {[%emt 0:00:09]} 22. Qxe4 {[%emt 0:00:02]} Qxe4 {[%emt 0:
00:06]} 23. fxe4 {[%emt 0:00:01]} Rd3 {[%emt 0:00:01]} 24. Rfd1 {[%emt 0:00:20]
} Rad8 {[%emt 0:00:01]} 25. Rxd3 {[%emt 0:00:01]} Rxd3 {[%emt 0:00:01]} 26. Rc1
{[%emt 0:00:08]} b6 {[%emt 0:00:08]} 27. Rc4 {[%emt 0:00:37]} g5 {[%emt 0:00:
30]} 28. Bc7 {[%emt 0:00:21]} Rd2 {[%emt 0:00:13]} 29. b4 {[%emt 0:00:01]} axb4
{[%emt 0:00:04]} 30. axb4 {[%emt 0:00:01]} Bxf2+ {[%emt 0:00:02]} 31. Kf1 {
[%emt 0:00:01]} Bd4 {[%emt 0:00:19]} 32. Rc6 {[%emt 0:00:15]} b5 {[%emt 0:00:
11]} 33. Bb6 {[%emt 0:00:07]} Be5 {[%emt 0:00:04]} 34. Rc5 {[%emt 0:00:03]}
Bxg3 {[%emt 0:00:01]} 35. Rxg5+ {[%emt 0:00:02]} Kf8 {[%emt 0:00:04]} 36. Rxg3
{[%emt 0:00:03]} Ke7 {[%emt 0:00:04]} 37. e5 {[%emt 0:00:03]} Kd7 {[%emt 0:00:
11]} 38. Bc5 {[%emt 0:00:01]} Kc6 {[%emt 0:00:01]} 39. Rf3 {[%emt 0:00:02]} Rd5
{[%emt 0:00:01]} 40. Rxf7 {[%emt 0:00:01]} Rxe5 {[%emt 0:00:01]} 41. Rxh7 {
[%emt 0:00:02]} Rf5+ {[%emt 0:00:00]} 42. Ke2 {[%emt 0:00:01]} Kd5 {[%emt 0:00:
01]} 43. h4 {[%emt 0:00:02]} Rf4 {[%emt 0:00:01]} 44. h5 {[%emt 0:00:02]} Rh4 {
[%emt 0:00:01]} 45. h6 {[%emt 0:00:01]} Kc4 {[%emt 0:00:01]} 46. Rh8 {[%emt 0:
00:01]} e5 {[%emt 0:00:01]} 47. h7 {[%emt 0:00:05]} Kb3 {[%emt 0:00:02]} 48.
Be7 {[%emt 0:00:02]} Rh3 {[%emt 0:00:02]} 49. Kf2 {[%emt 0:00:05]} e4 {[%emt 0:
00:01]} 50. Bc5 {[%emt 0:00:03]} Kb2 {[%emt 0:00:20]} 51. Kg2 {[%emt 0:00:01]}
Rh5 {[%emt 0:00:02]} 52. Kg3 {[%emt 0:00:01]} Kb3 {[%emt 0:00:01]} 53. Kf4 {
[%emt 0:00:01]} Rh4+ {[%emt 0:00:01]} 54. Ke3 {[%emt 0:00:01]} Kb2 {[%emt 0:00:
01]} 55. Bd6 {[%emt 0:00:02]} Kb3 {[%emt 0:00:02]} 56. Bc5 {[%emt 0:00:04]} Kb2
{[%emt 0:00:01]} 57. Kd4 {[%emt 0:00:03]} Kb3 {[%emt 0:00:01]} 58. Re8 {
[%emt 0:00:06]} e3+ {[%emt 0:00:06]} 59. Kxe3 {[%emt 0:00:01]} Rxh7 {[%emt 0:
00:01]} 60. Kd4 {[%emt 0:00:01]} Rh1 {[%emt 0:00:02]} 61. Kd5 {[%emt 0:00:01]}
Rh6 {[%emt 0:00:02]} 62. Re6 {[%emt 0:00:01]} Rh5+ {[%emt 0:00:01]} 63. Kc6 {
[%emt 0:00:01]} Ka4 {[%emt 0:00:01]} 64. Re8 {[%emt 0:00:01]} Rh6+ {[%emt 0:00:
02]} 65. Bd6 {[%emt 0:00:01]} Rh5 {[%emt 0:00:03]} 66. Ra8+ {[%emt 0:00:01]}
Kb3 {[%emt 0:00:00]} 67. Bc5 {[%emt 0:00:01]} Kc4 {[%emt 0:00:01]} 68. Ra1 {
[%emt 0:00:02]} Rh6+ {[%emt 0:00:02]} 69. Bd6 {[%emt 0:00:01]} Rh5 {[%emt 0:00:
01]} 70. Rc1+ {[%emt 0:00:02]} Kb3 {[%emt 0:00:00]} 71. Rc5 {[%emt 0:00:02]}
Rh1 {[%emt 0:00:04]} 72. Kxb5 {[%emt 0:00:01]} Rh4 {[%emt 0:00:00]} 73. Rc6 {
[%emt 0:00:03]} Rg4 {[%emt 0:00:02]} 74. Bc5 {[%emt 0:00:01]} Rg8 {[%emt 0:00:
01]} 75. Rb6 {[%emt 0:00:02]} Rg5 {[%emt 0:00:01]} 76. Ka6 {[%emt 0:00:01]} Kc4
{[%emt 0:00:01]} 77. Bd6 {[%emt 0:00:02]} Rg1 {[%emt 0:00:01]} 78. Kb7 {
[%emt 0:00:05]} Rg7+ {[%emt 0:00:01]} 79. Kc6 {[%emt 0:00:02]} Rg6 {[%emt 0:00:
01]} 80. Rb8 {[%emt 0:00:02]} Rh6 {[%emt 0:00:02]} 81. Rf8 {[%emt 0:00:01]} Rg6
{[%emt 0:00:01]} 82. Rf4+ {[%emt 0:00:01]} Kb3 {[%emt 0:00:01]} 83. b5 {
[%emt 0:00:01]} Rg1 {[%emt 0:00:02]} 84. b6 {[%emt 0:00:01]} Rc1+ {[%emt 0:00:
00]} 85. Bc5 {[%emt 0:00:01]} 1-0

[Event "GER-ch Blitz 2019"]
[Site "Magdeburg"]
[Date "2019.05.25"]
[Round "15.5"]
[White "Buhmann, Rainer"]
[Black "Barzen, Pascal"]
[Result "1-0"]
[ECO "E12"]
[WhiteElo "2573"]
[BlackElo "2292"]
[Annotator "ChessBase"]
[PlyCount "93"]
[EventDate "2019.05.25"]
[EventType "tourn"]
[EventCountry "GER"]
[Tiebreak "Number of wins+Number of black wins"]
[SourceTitle "playchess.com"]
[Source "ChessBase"]
[SourceQuality "1"]
[TimeControl "180+2"]

1. d4 {[%emt 0:00:00]} Nf6 {[%emt 0:00:00]} 2. c4 {[%emt 0:00:00]} e6 {[%emt 0:
00:00]} 3. Nf3 {[%emt 0:00:02]} b6 {[%emt 0:00:01]} 4. a3 {[%emt 0:00:04]} Bb7
{[%emt 0:00:02]} 5. Nc3 {[%emt 0:00:01]} d5 {[%emt 0:00:01]} 6. cxd5 {[%emt 0:
00:02]} exd5 {[%emt 0:00:00]} 7. Bg5 {[%emt 0:00:03]} Be7 {[%emt 0:00:02]} 8.
e3 {[%emt 0:00:01]} O-O {[%emt 0:00:02]} 9. Qc2 {[%emt 0:00:01]} c5 {[%emt 0:
00:05]} 10. Rd1 {[%emt 0:00:19]} Nbd7 {[%emt 0:00:20]} 11. Be2 {[%emt 0:00:13]}
Rc8 {[%emt 0:00:02]} 12. O-O {[%emt 0:00:05]} Ne4 {[%emt 0:00:07]} 13. Bxe7 {
[%emt 0:00:06]} Qxe7 {[%emt 0:00:02]} 14. dxc5 {[%emt 0:00:34]} Nxc3 {[%emt 0:
00:04]} 15. Qxc3 {[%emt 0:00:04]} bxc5 {[%emt 0:00:09]} 16. Rfe1 {[%emt 0:00:
13]} Rfe8 {[%emt 0:00:04]} 17. Bb5 {[%emt 0:00:05]} Red8 {[%emt 0:00:06]} 18.
b4 {[%emt 0:00:24]} Nf6 {[%emt 0:00:21]} 19. bxc5 {[%emt 0:00:13]} Ne4 {
[%emt 0:00:13]} 20. Qb4 {[%emt 0:00:03]} Rxc5 {[%emt 0:00:17]} 21. Bf1 {
[%emt 0:00:05]} Qc7 {[%emt 0:00:19]} 22. Nd4 {[%emt 0:00:05]} a5 {[%emt 0:00:
08]} 23. Qb2 {[%emt 0:00:02]} Bc8 {[%emt 0:00:21]} 24. Rc1 {[%emt 0:00:05]} h6
{[%emt 0:00:16]} 25. Rxc5 {[%emt 0:00:02]} Qxc5 {[%emt 0:00:00]} 26. Rc1 {
[%emt 0:00:02]} Qd6 {[%emt 0:00:04]} 27. Nc6 {[%emt 0:00:06]} Re8 {[%emt 0:00:
05]} 28. Nxa5 {[%emt 0:00:02]} Qg6 {[%emt 0:00:12]} 29. Nc6 {[%emt 0:00:13]}
Kh7 {[%emt 0:00:05]} 30. Nd4 {[%emt 0:00:01]} Bd7 {[%emt 0:00:10]} 31. Bd3 {
[%emt 0:00:06]} f5 {[%emt 0:00:02]} 32. Ne2 {[%emt 0:00:04]} Rc8 {[%emt 0:00:
08]} 33. Rxc8 {[%emt 0:00:03]} Bxc8 {[%emt 0:00:00]} 34. Nf4 {[%emt 0:00:03]}
Qd6 {[%emt 0:00:04]} 35. h4 {[%emt 0:00:05]} Nc5 {[%emt 0:00:04]} 36. Qc2 {
[%emt 0:00:02]} Nxd3 {[%emt 0:00:10]} 37. Qxd3 {[%emt 0:00:02]} g5 {[%emt 0:00:
04]} 38. hxg5 hxg5 {[%emt 0:00:01]} 39. Ne2 {[%emt 0:00:05]} Be6 {[%emt 0:00:
01]} 40. Nd4 {[%emt 0:00:02]} Bd7 {[%emt 0:00:00]} 41. Nxf5 {[%emt 0:00:04]}
Qg6 {[%emt 0:00:00]} 42. g4 {[%emt 0:00:02]} Qf6 43. Qxd5 {[%emt 0:00:05]} Bc6
{[%emt 0:00:08]} 44. Qd4 {[%emt 0:00:04]} Qf7 {[%emt 0:00:04]} 45. Qd6 {
[%emt 0:00:06]} Be8 {[%emt 0:00:03]} 46. Qh6+ {[%emt 0:00:02]} Kg8 {[%emt 0:00:
01]} 47. Qxg5+ {[%emt 0:00:01]} 1-0

[Event "GER-ch Blitz 2019"]
[Site "Magdeburg"]
[Date "2019.05.25"]
[Round "15.6"]
[White "Hebbinghaus, Holger"]
[Black "Braeuer, Franz"]
[Result "0-1"]
[ECO "B20"]
[WhiteElo "2310"]
[BlackElo "2445"]
[Annotator "NA"]
[PlyCount "44"]
[EventDate "2019.05.25"]
[EventType "tourn"]
[EventCountry "GER"]
[Tiebreak "Number of wins+Number of black wins"]
[SourceTitle "playchess.com"]
[Source "ChessBase"]
[SourceQuality "1"]
[TimeControl "180+2"]

1. e4 {[%emt 0:00:00]} c5 {[%emt 0:00:00]} 2. Be2 {[%emt 0:00:00]} Nc6 {
[%emt 0:00:00]} 3. f4 {[%emt 0:00:01]} e6 {[%emt 0:00:04]} 4. Nf3 {[%emt 0:00:
01]} Nge7 {[%emt 0:00:01]} 5. d3 {[%emt 0:00:02]} d5 {[%emt 0:00:01]} 6. O-O {
[%emt 0:00:01]} g6 {[%emt 0:00:01]} 7. c3 {[%emt 0:00:02]} Bg7 {[%emt 0:00:02]}
8. Be3 {[%emt 0:00:06]} b6 {[%emt 0:00:03]} 9. Bf2 {[%emt 0:00:06]} O-O {
[%emt 0:00:11]} 10. e5 {[%emt 0:00:12]} Ba6 {[%emt 0:00:42]} 11. d4 {[%emt 0:
00:13]} Bxe2 12. Qxe2 {[%emt 0:00:01]} cxd4 {[%emt 0:00:14]} 13. cxd4 {[%emt 0:
00:10]} Qd7 {[%emt 0:00:00]} 14. Nbd2 {[%emt 0:00:24]} Rfc8 {[%emt 0:00:07]}
15. Rac1 {[%emt 0:00:19]} Na5 {[%emt 0:00:24]} 16. b3 {[%emt 0:00:40]} Rxc1 {
[%emt 0:00:15]} 17. Rxc1 {[%emt 0:00:01]} Rc8 {[%emt 0:00:00]} 18. Qf1 {
[%emt 0:00:13]} Rc7 {[%emt 0:00:07]} 19. Nb1 {[%emt 0:00:34]} Qc8 {[%emt 0:00:
05]} 20. Be3 {[%emt 0:00:05]} Nf5 {[%emt 0:00:03]} 21. Bd2 {[%emt 0:00:02]} Nc6
{[%emt 0:00:04]} 22. Qf2 {[%emt 0:00:28]} Ncxd4 0-1